fUSD/lending_fUSD_20241122
["ID","MTS","AMOUNT","RATE_DAILY","PERIOD"]
[343054908,1732315839846,-500.0,0.00089999,120]
[343054909,1732315839857,-500.0,0.00089999,120]
[343054910,1732315839867,-500.0,0.00089999,120]
[343054911,1732315839876,-516.93,0.00089999,120]
[343054912,1732315839886,-500.0,0.00089999,120]
[343054913,1732315839898,-500.0,0.00089999,120]
[343054914,1732315839907,-500.0,0.00089999,120]
[343054915,1732315839918,-500.0,0.00089999,120]
[343054916,1732315839927,-10000.0,0.0009,120]
[343054917,1732315839941,-10000.0,0.0009,120]
[343054919,1732315839951,-16015.57113029,0.0009,120]
[343054920,1732315839960,-900.0,0.0009,91]
[343054921,1732315839971,-45176.4063338,0.0009,120]
[343054922,1732315839981,-1030.27,0.00090376,120]
[343054923,1732315839991,-283.26,0.00090508,4]
[343054924,1732315840001,-150.7204315,0.0009055,28]
[343054925,1732315840013,-157.21830924,0.00090767,120]
[343054926,1732315840022,-2500.0,0.000909,120]
[343054927,1732315840034,-500.0,0.00090987,120]
[343054928,1732315840045,-182.6,0.00090987,120]
[343054929,1732315840055,-900.0,0.00091,92]
[343054930,1732315840068,-571.16421919,0.00091053,7]
[343054931,1732315840077,-275.32,0.00091073,2]
[343054932,1732315840087,-500.0,0.00091123,60]
[343054933,1732315840096,-3489.66976649,0.00091189,15]
[343054934,1732315840105,-1410.16873746,0.00091781,7]
[343054935,1732315840114,-12431.5484372,0.0009188,11]
[343054936,1732315840123,-2500.0,0.000919,120]
[343054937,1732315840133,-1800.0,0.00092,93]
[343054938,1732315840143,-9800.0,0.00092,120]
[343054939,1732315840153,-150.7204315,0.000924,28]
[343054940,1732315840164,-12431.5484372,0.00092429,12]
[343054941,1732315840173,-3489.66976649,0.00092433,15]
[343054942,1732315840182,-4001.7873,0.0009278,120]
[343054943,1732315840192,-157.21830924,0.00092833,120]
[343054944,1732315840201,-12431.5484372,0.00092867,12]
[343054945,1732315840210,-1995.0,0.00092877,120]
[343054946,1732315840221,-561.0,0.00092877,120]
[343054947,1732315840231,-3147.589,0.00092877,120]
[343054948,1732315840241,-150.0,0.00092877,120]
[343054949,1732315840249,-1162.0,0.00092877,120]
[343054950,1732315840259,-1254.116,0.00092877,120]
[343054951,1732315840268,-877.972,0.00092877,120]
[343054952,1732315840278,-2500.0,0.000929,120]
[343054953,1732315840288,-518.36406373,0.00092904,120]
[343054954,1732315840298,-500.0,0.00092904,120]
[343054955,1732315840309,-500.0,0.00092904,120]
[343054956,1732315840319,-500.0,0.00092904,120]
[343054957,1732315840328,-241.76,0.00092904,120]
[343054958,1732315840337,-500.0,0.00092904,120]
[343054959,1732315840347,-500.0,0.00092904,120]
[343054960,1732315840356,-500.0,0.00092904,120]
[343054961,1732315840365,-500.0,0.00092904,120]
[343054962,1732315840375,-500.0,0.00092904,120]
[343054963,1732315840384,-500.0,0.00092904,120]
[343054964,1732315840393,-500.0,0.00092904,120]
[343054965,1732315840402,-500.0,0.00092904,120]
[343054966,1732315840411,-864.29,0.00092904,120]
[343054967,1732315840421,-500.0,0.00092904,120]
[343054968,1732315840430,-12431.5484372,0.00092969,12]
[343054969,1732315840440,-11593.9509425,0.00092969,11]
[343054970,1732315840449,-12431.5484372,0.00092979,12]
[343054971,1732315840458,-5796.97547124,0.00092979,11]
[343054972,1732315840467,-500.0,0.00092979,120]
[343054973,1732315840478,-247.78893397,0.00092979,120]
[343054974,1732315840487,-500.0,0.00092979,120]
[343054975,1732315840496,-500.0,0.00092979,120]
[343054976,1732315840505,-500.0,0.00092979,120]
[343054977,1732315840515,-500.0,0.00092979,120]
[343054978,1732315840524,-356.04234133,0.00092979,120]
[343054979,1732315840532,-500.0,0.00092979,120]
[343054980,1732315840542,-500.0,0.00092979,120]
[343054981,1732315840551,-500.0,0.00092979,120]
[343054982,1732315840559,-500.0,0.00092979,120]
[343054983,1732315840568,-291.71839952,0.00092979,120]
[343054984,1732315840577,-500.0,0.00092979,120]
[343054985,1732315840586,-500.0,0.00092979,120]
[343054986,1732315840595,-500.0,0.00092979,120]
[343054987,1732315840604,-513.80366328,0.00092979,120]
[343054988,1732315840612,-500.0,0.00092979,120]
[343054989,1732315840621,-500.0,0.00092979,120]
[343054990,1732315840630,-500.0,0.00092979,120]
[343054991,1732315840639,-500.0,0.00092979,120]
[343054992,1732315840648,-500.0,0.00092979,120]
[343054993,1732315840657,-500.0,0.00092979,120]
[343054994,1732315840667,-500.0,0.00092979,120]
[343054995,1732315840677,-500.0,0.00092979,120]
[343054996,1732315840686,-500.0,0.00092979,120]
[343054998,1732315840695,-500.0,0.00092979,120]
[343055000,1732315840705,-500.0,0.00092979,120]
[343055002,1732315840714,-500.0,0.00092979,120]
[343055004,1732315840725,-500.0,0.00092979,120]
[343055006,1732315840735,-500.0,0.00092979,120]
[343055008,1732315840745,-562.58,0.00092979,120]
[343055010,1732315840754,-500.0,0.00092979,120]
[343055012,1732315840763,-500.0,0.00092979,120]
[343055014,1732315840772,-565.56015367,0.00092979,7]
[343055016,1732315840781,-500.0,0.00092979,120]
[343055018,1732315840791,-500.0,0.00092979,120]
[343055020,1732315840800,-503.05713934,0.00092979,120]
[343055022,1732315840810,-500.0,0.00092979,120]
[343055024,1732315840819,-506.78853678,0.00092979,120]
[343055026,1732315840828,-500.0,0.00092979,120]
[343055028,1732315840839,-500.0,0.00092979,120]
[343055030,1732315840849,-502.30466946,0.00092979,120]
[343055032,1732315840863,-259.48055388,0.00092979,120]
[343055034,1732315840873,-500.0,0.00092979,120]
[343055036,1732315840882,-500.0,0.00092979,120]
[343055038,1732315840891,-500.0,0.00092979,120]
[343055040,1732315840901,-500.0,0.00092979,120]
[343055042,1732315840911,-500.0,0.00092979,120]
[343055044,1732315840920,-500.0,0.00092979,120]
[343055046,1732315840930,-500.0,0.00092979,120]
[343055048,1732315840940,-501.76647119,0.00092979,120]
[343055050,1732315840949,-500.0,0.00092979,120]
[343055052,1732315840959,-500.0,0.00092979,120]
[343055054,1732315840967,-500.0,0.00092979,120]
[343055056,1732315840978,-500.0,0.00092979,120]
[343055058,1732315840987,-500.0,0.00092979,120]
[343055060,1732315840996,-500.0,0.00092979,120]
[343055062,1732315841006,-504.14656479,0.00092979,120]
[343055064,1732315841016,-500.0,0.00092979,120]
[343055066,1732315841025,-501.92638583,0.00092979,120]
[343055068,1732315841034,-501.47131094,0.00092979,120]
[343055070,1732315841043,-500.0,0.00092979,120]
[343055072,1732315841053,-501.70573269,0.00092979,120]
[343055074,1732315841061,-500.0,0.00092979,120]
[343055076,1732315841071,-500.0,0.00092979,120]
[343055078,1732315841080,-500.0,0.00092979,120]
[343055080,1732315841089,-500.0,0.00092979,120]
[343055082,1732315841098,-575.48,0.0009298,120]
[343055083,1732315841108,-500.0,0.0009298,120]
[343055085,1732315841117,-408.4,0.00092987,120]
[343055087,1732315841126,-500.0,0.00092987,120]
[343055089,1732315841136,-5796.97547124,0.00092988,11]
[343055092,1732315841145,-12431.5484372,0.00092989,12]
[343055093,1732315841154,-5796.97547124,0.00092989,11]
[343055096,1732315841163,-500.0,0.00092998,120]
[343055097,1732315841173,-500.0,0.00092998,120]
[343055099,1732315841182,-500.0,0.00092998,120]
[343055102,1732315841191,-500.0,0.00092998,120]
[343055103,1732315841200,-500.0,0.00092998,120]
[343055105,1732315841209,-500.0,0.00092998,120]
[343055107,1732315841219,-500.0,0.00092998,120]
[343055110,1732315841228,-500.0,0.00092998,120]
[343055112,1732315841238,-988.41,0.00092998,120]
[343055113,1732315841247,-500.0,0.00092998,120]
[343055114,1732315841257,-574.80310137,0.00092998,120]
[343055115,1732315841266,-500.0,0.00092998,120]
[343055116,1732315841275,-500.0,0.00092998,120]
[343055117,1732315841284,-500.0,0.00092998,120]
[343055118,1732315841294,-500.0,0.00092998,120]
[343055119,1732315841303,-500.0,0.00092998,120]
[343055120,1732315841312,-589.78,0.00092998,120]
[343055121,1732315841322,-500.0,0.00092998,120]
[343055122,1732315841331,-500.0,0.00092999,120]
[343055123,1732315841341,-500.0,0.00092999,120]
[343055124,1732315841350,-500.0,0.00092999,120]
[343055125,1732315841359,-500.0,0.00092999,120]
[343055126,1732315841369,-500.0,0.00092999,120]
[343055127,1732315841378,-500.0,0.00092999,120]
[343055128,1732315841388,-500.0,0.00092999,120]
[343055129,1732315841398,-500.0,0.00092999,120]
[343055130,1732315841407,-559.8,0.00092999,120]
[343055131,1732315841417,-369.85,0.00092999,120]
[343055132,1732315841426,-864.29,0.00092999,120]
[343055133,1732315841434,-864.29,0.00092999,120]
[343055134,1732315841443,-290.18967903,0.00092999,120]
[343055135,1732315841454,-600.451,0.00093148,120]
[343055136,1732315841464,-275.32,0.00093337,2]
[343055137,1732315841474,-5796.97547124,0.0009344,12]
[343055138,1732315841483,-24863.0968743,0.0009345,12]
[343055139,1732315841493,-23187.901885,0.0009345,12]
[343055140,1732315841504,-43999.99999999,0.0009346,120]
[343055141,1732315841513,-12431.5484372,0.00093663,12]
[343055142,1732315841522,-5796.97547124,0.00093663,12]
[343055143,1732315841531,-1000.0,0.0009367,120]
[343055144,1732315841540,-5796.97547124,0.00093673,12]
[343055145,1732315841549,-3489.66976649,0.00093678,15]
[343055146,1732315841579,-283.26,0.0009382,4]
[343055147,1732315841588,-5796.97547124,0.0009385,12]
[343055148,1732315841597,-500.0,0.00093859,120]
[343055149,1732315841606,-500.0,0.00093859,120]
[343055150,1732315841615,-500.0,0.00093859,120]
[343055151,1732315841624,-500.0,0.00093859,120]
[343055152,1732315841633,-455.06687336,0.00093859,120]
[343055153,1732315841642,-500.0,0.00093859,120]
[343055154,1732315841652,-513.70039482,0.00093859,120]
[343055155,1732315841662,-516.93,0.00093859,120]
[343055156,1732315841672,-500.0,0.00093859,120]
[343055157,1732315841681,-500.0,0.00093859,120]
[343055158,1732315841691,-500.0,0.00093859,120]
[343055159,1732315841700,-24863.0968743,0.0009386,12]
[343055160,1732315841710,-17390.9264137,0.0009386,12]
[343055161,1732315841719,-500.0,0.00093869,120]
[343055162,1732315841729,-500.0,0.00093869,120]
[343055163,1732315841738,-43645.0868466,0.0009387,120]
[343055164,1732315841749,-12431.5484372,0.0009388,12]
[343055165,1732315841758,-5796.97547124,0.0009388,12]
[343055166,1732315841767,-5796.97547124,0.0009389,12]
[343055167,1732315841779,-2500.0,0.000939,120]
[343055168,1732315841788,-5796.97547124,0.00093931,12]
[343055169,1732315841798,-12431.5484372,0.00093979,12]
[343055170,1732315841807,-5796.97547124,0.00093989,12]
[343055171,1732315841816,-500.0,0.00093999,120]
[343055172,1732315841824,-500.0,0.00093999,120]
[343055173,1732315841834,-500.0,0.00093999,120]
[343055174,1732315841843,-500.0,0.00093999,120]
[343055175,1732315841857,-500.0,0.00093999,120]
[343055176,1732315841866,-864.29,0.00093999,120]
[343055177,1732315841875,-3000.0,0.00094,120]
[343055178,1732315841885,-3000.0,0.0009405,120]
[343055179,1732315841894,-3430.56147406,0.00094087,120]
[343055180,1732315841904,-5796.97547124,0.0009424,12]
[343055181,1732315841913,-150.7204315,0.0009425,28]
[343055182,1732315841922,-1000.0,0.00094401,120]
[343055183,1732315841932,-754.54,0.00094414,120]
[343055184,1732315841943,-12431.5484372,0.0009448,12]
[343055185,1732315841952,-11593.9509425,0.0009448,12]
[343055186,1732315841961,-24863.0968743,0.0009449,12]
[343055187,1732315841972,-28984.8773562,0.0009449,12]
[343055188,1732315841981,-181.112307,0.00094498,120]
[343055189,1732315841990,-2456.25466682,0.000945,120]
[343055190,1732315842000,-50000.0,0.000945,120]
[343055191,1732315842009,-379.26984456,0.0009463,120]
[343055192,1732315842018,-5796.97547124,0.0009478,12]
[343055193,1732315842027,-1303.69923598,0.00094785,120]
[343055194,1732315842037,-196.65743182,0.00094785,120]
[343055195,1732315842048,-5796.97547124,0.0009479,12]
[343055196,1732315842058,-164.75144817,0.0009479,83]
[343055197,1732315842068,-34781.8528274,0.0009479,12]
[343055198,1732315842077,-9358.444649,0.000948,2]
[343055199,1732315842087,-10000.71970821,0.000948,120]
[343055200,1732315842097,-55555.0,0.000948,120]
[343055201,1732315842106,-3000.0,0.000948,120]
[343055202,1732315842116,-1303.69923596,0.00094843,120]
[343055203,1732315842126,-11593.9509425,0.00094879,12]
[343055204,1732315842135,-5796.97547124,0.00094879,12]
[343055205,1732315842145,-5796.97547124,0.0009488,12]
[343055206,1732315842154,-8000.0,0.00094885,120]
[343055207,1732315842163,-500.0,0.00094888,120]
[343055208,1732315842172,-500.0,0.00094888,120]
[343055209,1732315842182,-500.0,0.00094888,120]
[343055210,1732315842191,-500.0,0.00094888,120]
[343055211,1732315842201,-500.0,0.00094888,120]
[343055212,1732315842210,-516.93,0.00094888,120]
[343055213,1732315842219,-500.0,0.00094888,120]
[343055214,1732315842230,-500.0,0.00094888,120]
[343055215,1732315842240,-500.0,0.00094888,120]
[343055216,1732315842249,-500.0,0.00094889,120]
[343055217,1732315842259,-500.0,0.00094889,120]
[343055218,1732315842268,-500.0,0.00094889,120]
[343055219,1732315842277,-500.0,0.00094889,120]
[343055220,1732315842286,-500.0,0.00094889,120]
[343055221,1732315842296,-500.0,0.00094889,120]
[343055222,1732315842308,-500.0,0.00094889,120]
[343055223,1732315842319,-500.0,0.00094889,120]
[343055224,1732315842330,-500.0,0.00094889,120]
[343055225,1732315842340,-879.71305821,0.00094889,120]
[343055226,1732315842402,-108.69694179,0.00094889,120]
[343055227,1732315842411,-500.0,0.00094889,120]
[343055228,1732315842421,-500.0,0.00094889,120]
[343055229,1732315842430,-500.0,0.00094889,120]
[343055230,1732315842440,-500.0,0.00094889,120]
[343055231,1732315842449,-500.0,0.00094889,120]
[343055232,1732315842458,-500.0,0.00094889,120]
[343055233,1732315842467,-273.90620747,0.00094899,120]
[343055234,1732315842478,-500.0,0.00094899,120]
[343055235,1732315842488,-313.47331471,0.00094899,120]
[343055236,1732315842497,-500.0,0.00094899,120]
[343055237,1732315842506,-500.0,0.00094899,120]
[343055238,1732315842516,-470.0,0.00094899,120]
[343055239,1732315842525,-500.0,0.00094899,120]
[343055240,1732315842534,-498.58333498,0.00094899,120]
[343055241,1732315842544,-500.0,0.00094899,120]
[343055242,1732315842554,-500.0,0.00094899,120]
[343055243,1732315842563,-500.0,0.00094899,120]
[343055244,1732315842573,-500.0,0.00094899,120]
[343055245,1732315842582,-237.48840896,0.00094899,120]
[343055246,1732315842592,-481.74,0.00094899,120]
[343055247,1732315842602,-609.71365374,0.00094899,120]
[343055248,1732315842612,-500.0,0.00094899,120]
[343055249,1732315842622,-500.0,0.00094899,120]
[343055250,1732315842632,-500.0,0.00094899,120]
[343055251,1732315842641,-500.0,0.00094899,120]
[343055252,1732315842651,-603.56,0.00094899,120]
[343055253,1732315842660,-988.41,0.00094899,120]
[343055254,1732315842670,-500.0,0.00094899,120]
[343055255,1732315842679,-500.0,0.00094899,120]
[343055256,1732315842689,-500.0,0.00094899,120]
[343055257,1732315842698,-500.0,0.00094899,120]
[343055258,1732315842708,-500.0,0.00094899,120]
[343055259,1732315842717,-500.0,0.00094899,120]
[343055260,1732315842728,-500.0,0.00094899,120]
[343055261,1732315842738,-500.0,0.00094899,120]
[343055262,1732315842748,-500.0,0.00094899,120]
[343055263,1732315842758,-500.0,0.00094899,120]
[343055264,1732315842768,-500.0,0.00094899,120]
[343055265,1732315842778,-516.93,0.00094899,120]
[343055266,1732315842788,-500.0,0.00094899,120]
[343055267,1732315842798,-500.0,0.00094899,120]
[343055269,1732315842808,-2500.0,0.000949,120]
[343055271,1732315842820,-100000.0,0.000949,30]
[343055273,1732315842829,-10504.0,0.000949,120]
[343055274,1732315842839,-363.40150184,0.000949,83]
[343055276,1732315842848,-1303.69923596,0.000949,120]
[343055278,1732315842861,-157.21830924,0.000949,120]
[343055281,1732315842871,-17343.13545992,0.000949,2]
[343055283,1732315842880,-3489.66976649,0.00094922,15]
[343055284,1732315842890,-150.0,0.00094986,120]
[343055285,1732315842901,-150.0,0.00094986,120]
[343055286,1732315842910,-150.0,0.00094986,120]
[343055287,1732315842920,-150.0,0.00094986,120]
[343055288,1732315842929,-150.26522884,0.00094986,120]
[343055289,1732315842939,-150.0,0.00094986,120]
[343055290,1732315842950,-150.0,0.00094986,120]
[343055291,1732315842961,-150.0,0.00094986,120]
[343055292,1732315842970,-169.88,0.00094988,120]
[343055293,1732315842980,-423.24,0.00094988,120]
[343055294,1732315842990,-500.0,0.00094988,120]
[343055296,1732315842999,-471.58,0.00094988,120]
[343055298,1732315843008,-215.25,0.00094988,120]
[343055300,1732315843018,-500.0,0.00094989,120]
[343055302,1732315843027,-338.56,0.00094989,120]
[343055303,1732315843037,-541.92,0.00094989,120]
[343055304,1732315843046,-988.41,0.00094989,120]
[343055305,1732315843055,-988.41,0.00094989,120]
[343055306,1732315843065,-500.0,0.00094989,120]
[343055307,1732315843074,-500.0,0.00094989,120]
[343055308,1732315843083,-500.0,0.00094989,120]
[343055309,1732315843092,-519.52,0.00094989,120]
[343055310,1732315843101,-500.0,0.00094998,120]
[343055311,1732315843110,-500.0,0.00094998,120]
[343055312,1732315843120,-864.29,0.00094998,120]
[343055313,1732315843129,-444.30200481,0.00094999,120]
[343055314,1732315843139,-4092.81031508,0.00094999,120]
[343055315,1732315843148,-787.32431681,0.00094999,2]
[343055316,1732315843158,-500.0,0.00094999,120]
[343055317,1732315843167,-500.0,0.00094999,120]
[343055318,1732315843177,-500.0,0.00094999,120]
[343055319,1732315843185,-500.0,0.00094999,120]
[343055320,1732315843195,-500.0,0.00094999,120]
[343055321,1732315843204,-500.0,0.00094999,120]
[343055322,1732315843215,-500.0,0.00094999,120]
[343055323,1732315843225,-500.0,0.00094999,120]
[343055324,1732315843235,-500.0,0.00094999,120]
[343055325,1732315843244,-500.0,0.00094999,120]
[343055326,1732315843254,-500.0,0.00094999,120]
[343055327,1732315843264,-500.0,0.00094999,120]
[343055328,1732315843273,-500.0,0.00094999,120]
[343055329,1732315843283,-500.0,0.00094999,120]
[343055330,1732315843292,-500.0,0.00094999,120]
[343055331,1732315843302,-500.0,0.00094999,120]
[343055332,1732315843311,-500.0,0.00094999,120]
[343055333,1732315843321,-396.02,0.00094999,120]
[343055334,1732315843330,-500.0,0.00094999,120]
[343055335,1732315843340,-500.0,0.00094999,120]
[343055336,1732315843349,-500.0,0.00094999,120]
[343055337,1732315843359,-500.0,0.00094999,120]
[343055338,1732315843368,-500.0,0.00094999,120]
[343055339,1732315843378,-500.0,0.00094999,120]
[343055340,1732315843387,-500.0,0.00094999,120]
[343055341,1732315843396,-500.0,0.00094999,120]
[343055342,1732315843405,-256.03526211,0.00094999,120]
[343055343,1732315843414,-988.41,0.00094999,120]
[343055344,1732315843424,-988.41,0.00094999,120]
[343055345,1732315843434,-988.41,0.00094999,120]
[343055346,1732315843443,-988.41,0.00094999,120]
[343055347,1732315843453,-988.41,0.00094999,120]
[343055348,1732315843462,-988.41,0.00094999,120]
[343055349,1732315843473,-988.41,0.00094999,120]
[343055350,1732315843482,-988.41,0.00094999,120]
[343055351,1732315843492,-864.29,0.00094999,120]
[343055352,1732315843502,-988.41,0.00094999,120]
[343055353,1732315843511,-864.29,0.00094999,120]
[343055354,1732315843521,-988.41,0.00094999,120]
[343055355,1732315843530,-864.29,0.00094999,120]
[343055356,1732315843540,-988.41,0.00094999,120]
[343055357,1732315843549,-864.29,0.00094999,120]
[343055358,1732315843559,-988.41,0.00094999,120]
[343055359,1732315843568,-864.29,0.00094999,120]
[343055360,1732315843577,-988.41,0.00094999,120]
[343055361,1732315843586,-864.29,0.00094999,120]
[343055362,1732315843596,-988.41,0.00094999,120]
[343055363,1732315843605,-988.41,0.00094999,120]
[343055364,1732315843615,-988.41,0.00094999,120]
[343055365,1732315843625,-864.29,0.00094999,120]
[343055366,1732315843635,-988.41,0.00094999,120]
[343055367,1732315843645,-864.29,0.00094999,120]
[343055369,1732315843654,-988.41,0.00094999,120]
[343055370,1732315843664,-864.29,0.00094999,120]
[343055371,1732315843674,-864.29,0.00094999,120]
[343055373,1732315843684,-864.29,0.00094999,120]
[343055375,1732315843693,-864.29,0.00094999,120]
[343055377,1732315843703,-864.29,0.00094999,120]
[343055378,1732315843712,-864.29,0.00094999,120]
[343055379,1732315843722,-864.29,0.00094999,120]
[343055380,1732315843732,-864.29,0.00094999,120]
[343055381,1732315843742,-864.33,0.00094999,120]
[343055382,1732315843752,-500.0,0.00094999,120]
[343055383,1732315843762,-500.0,0.00094999,120]
[343055384,1732315843771,-500.0,0.00094999,120]
[343055387,1732315843782,-500.0,0.00094999,120]
[343055389,1732315843791,-500.0,0.00094999,120]
[343055390,1732315843801,-500.0,0.00094999,120]
[343055392,1732315843810,-500.0,0.00094999,120]
[343055394,1732315843820,-214.5,0.00094999,120]
[343055397,1732315843830,-500.0,0.00094999,120]
[343055398,1732315843840,-500.0,0.00094999,120]
[343055400,1732315843851,-500.0,0.00094999,120]
[343055403,1732315843864,-500.0,0.00094999,120]
[343055405,1732315843874,-514.47,0.00094999,120]
[343055406,1732315843884,-323.48,0.00094999,120]
[343055407,1732315843895,-516.93,0.00094999,120]
[343055408,1732315843904,-516.93,0.00094999,120]
[343055409,1732315843914,-516.93,0.00094999,120]
[343055410,1732315843923,-516.93,0.00094999,120]
[343055411,1732315843936,-516.93,0.00094999,120]
[343055412,1732315843947,-516.93,0.00094999,120]
[343055413,1732315843957,-516.93,0.00094999,120]
[343055414,1732315843966,-516.93,0.00094999,120]
[343055415,1732315843976,-516.93,0.00094999,120]
[343055416,1732315843985,-516.93,0.00094999,120]
[343055417,1732315843995,-516.93,0.00094999,120]
[343055418,1732315844005,-516.93,0.00094999,120]
[343055419,1732315844015,-516.93,0.00094999,120]
[343055420,1732315844025,-516.93,0.00094999,120]
[343055421,1732315844034,-516.93,0.00094999,120]
[343055422,1732315844043,-516.93,0.00094999,120]
[343055423,1732315844053,-516.93,0.00094999,120]
[343055424,1732315844062,-516.93,0.00094999,120]
[343055425,1732315844072,-516.98,0.00094999,120]
[343055426,1732315844082,-500.0,0.00094999,120]
[343055427,1732315844091,-500.0,0.00094999,120]
[343055428,1732315844101,-500.0,0.00094999,120]
[343055429,1732315844196,-500.0,0.00094999,120]
[343055430,1732315844206,-500.0,0.00094999,120]
[343055431,1732315844215,-500.0,0.00094999,120]
[343055432,1732315844225,-500.0,0.00094999,120]
[343055433,1732315844234,-285.92,0.00094999,120]
[343055434,1732315844243,-100000.0,0.00095,93]
[343055435,1732315844253,-18706.96163354,0.00095,61]
[343055436,1732315844262,-2439.62615148,0.00095,120]
[343055438,1732315844271,-1000.0,0.00095,120]
[343055439,1732315844281,-1547823.43472392,0.00095,120]
[343055442,1732315844294,-389.62603928,0.00095,120]
[343055444,1732315844306,-4214.35254875,0.00095,120]
[343055449,1732315844346,-500.0,0.00088799,120]
[343055451,1732315844355,-500.0,0.00092979,120]
[343055453,1732315844365,-3221.63229795,0.00095,120]
[343055455,1732315844376,-9509.447793,0.00095,120]
[343055457,1732315844387,-1487.18612401,0.00095,120]
[343055458,1732315844398,-1658.80500006,0.00095,120]
[343055459,1732315844410,-31498.0000001,0.00095,120]
[343055461,1732315844500,-5418.22549394,0.00095,120]
[343055462,1732315844532,-1509.64259488,0.00095,120]
[343055463,1732315844543,-690.34200092,0.00095,120]
[343055464,1732315844555,-1259.96086,0.00095,120]
[343055465,1732315844591,-5521.52343278,0.00095,120]
[343055466,1732315844602,-10196.12086654,0.00095,120]
[343055467,1732315844612,-10585.82767192,0.00095,120]
[343055468,1732315844623,-5692.24599074,0.00095,120]
[343055469,1732315844634,-3589.2268016,0.00095,120]
[343055470,1732315844645,-341.46735558,0.00095,120]
[343055471,1732315844656,-2168.40291875,0.00095,120]
[343055472,1732315844671,-3364.14883089,0.00095,120]
[343055473,1732315844682,-22959.98544512,0.00095,120]
[343055474,1732315844693,-513.18500005,0.00095,120]
[343055478,1732315846114,-653.5,0.000949,60]
[343055479,1732315846124,-1197.2754052,0.00095,120]
[343055480,1732315846135,-984.81,0.00095,120]
[343055481,1732315846232,-137052.17643417,0.00095,120]
[343055482,1732315846264,-2608.27329228,0.00095,120]
[343055483,1732315846296,-98547.09279999,0.00095,120]
[343055484,1732315846307,-2076.42009453,0.00095,120]
[343055485,1732315846363,-124.91216672,0.00095,120]
[343055524,1732315912619,158.99,0.00041096,2]
[343055525,1732316075602,500.0,0.0005,120]
[343055526,1732316128863,-8575.88419408,0.000598,120]
[343055527,1732316175646,1380.2691569,0.00050201,10]
[343055528,1732316221895,123626.0,0.000524,120]
[343055529,1732316234616,926.99,0.0005,120]
[343055530,1732316453839,291.2745641,0.00051435,120]
[343055531,1732316574233,-500.0,0.00054795,120]
[343055533,1732316614787,151.94,0.00041096,2]
[343055534,1732316615007,151.94,0.0005175,2]
[343055536,1732316668542,250.0,0.00031,2]
[343055537,1732316827122,-151.94,0.00062405,120]
[343055538,1732316827147,-664.6823445,0.000687,7]
[343055539,1732316845090,-364.51766981,0.000687,7]
[343055540,1732316850111,-672.14998569,0.000687,7]
[343055541,1732316850133,-87.98239776,0.00069,10]
[343055542,1732316945099,-4165.41514898,0.00069,10]
[343055543,1732316945121,-64.92974392,0.00073059,120]
[343055548,1732316974117,-87.01025608,0.00073059,120]
[343055549,1732316974138,-346.27,0.00079,60]
[343055550,1732316974161,-180.0,0.000797,7]
[343055551,1732316974183,-200.0,0.0008,30]
[343055552,1732316974205,-250.0,0.0008,60]
[343055553,1732316974230,-151.94,0.00083714,120]